bitfinex-derivatives/quotes_SOLF0:USTF0_20241212
["timestamp","ask_amount","ask_price","bid_price","bid_amount"]
[1734035774506,2.1835,228.96,228.93,6.07956363]
[1734035775311,2.1836,228.95,228.92,24.31825452]
[1734035776002,6.46841112,228.95,228.92,6.07956363]
[1734035776406,2.1838,228.93,228.92,6.07956363]
[1734035776608,2.1838,228.93,228.92,16.16238621]
[1734035777004,2.1838,228.93,228.92,5.30183564]
[1734035778512,2.1838,228.92,228.91,75.35476357]
[1734035778812,2.1838,228.92,228.91,133.2542331]
[1734035779009,2.1838,228.92,228.91,133.2542259]
[1734035782714,2.1838,228.92,228.91,5.30153494]
[1734035783013,6.46841112,228.93,228.88,72.95476357]
[1734035783209,6.46841112,228.91,228.86,148.30952715]
[1734035783417,6.46841112,228.91,228.87,5.29747615]
[1734035783712,6.46841112,228.91,228.86,75.35476357]
[1734035783915,6.46841112,228.91,228.87,5.29705486]
[1734035784123,2.1842,228.89,228.86,148.30952715]
[1734035784310,6.46841112,228.91,228.87,5.29556576]
[1734035784507,6.46841112,228.91,228.86,2.4]
[1734035784713,2.1842,228.88,228.87,5.29612576]
[1734035787216,2.184,228.9,228.87,5.29612576]
[1734035787412,4.3662,229.0,228.88,248.57224991]
[1734035787615,4.2004,229.01,228.9,6.46841112]
[1734035787616,6.46841112,228.97,228.9,6.46841112]
[1734035787812,2.1837,228.94,228.91,242.07090471]
[1734035788015,2.1837,228.94,228.92,5.27233845]
[1734035788214,2.1837,228.93,228.91,145.90952715]
[1734035788518,2.1837,228.93,228.92,5.26969074]
[1734035788822,2.1837,228.93,228.92,5.27189881]
[1734035789216,4.2004,229.01,228.92,11.74030993]
[1734035789217,2.1836,228.94,228.92,11.74030993]
[1734035789413,6.46841112,229.0,228.92,152.37793827]
[1734035789617,0.67442815,228.99,228.92,152.37793827]
[1734035789810,0.67442815,228.99,228.93,5.27281988]
[1734035790014,0.67442815,228.99,228.92,152.37793827]
[1734035790215,6.46841112,229.0,228.93,5.27274157]
[1734035790421,2.1834,228.96,228.94,5.27274157]
[1734035790720,6.46841112,228.98,228.92,145.90952715]
[1734035791017,2.1834,228.97,228.93,11.74154264]
[1734035791216,6.46841112,229.0,228.94,5.27313152]
[1734035791417,6.46841112,229.0,228.93,6.46841112]
[1734035791618,6.46841112,229.0,228.94,5.27440719]
[1734035791818,6.46841112,229.0,228.93,6.46841112]
[1734035792018,6.46841112,229.0,228.94,242.12266247]
[1734035792321,6.46841112,229.0,228.95,130.86802179]
[1734035792512,6.46841112,229.0,228.95,72.95476357]
[1734035792717,2.7667,229.01,228.95,6.46841112]
[1734035792916,6.46841112,229.03,228.96,2.4]
[1734035793111,0.67433103,229.02,228.96,2.4]
[1734035793425,6.46841112,229.01,228.96,2.4]
[1734035793719,2.1831,229.0,228.96,2.4]
[1734035796222,2.1829,229.02,228.97,8.65171112]
[1734035796519,2.1829,229.02,228.97,6.46841112]
[1734035796818,2.1829,229.02,228.97,8.65171112]
[1734035797614,2.1829,229.02,228.98,5.28027957]
[1734035797819,2.183,229.01,228.97,81.60647469]
[1734035798019,2.183,229.01,228.98,125.57888306]
[1734035798314,6.46841112,229.01,228.96,2.4]
[1734035798518,6.46841112,229.01,228.96,75.35476357]
[1734035798719,6.46841112,229.01,228.97,5.28056447]
[1734035798918,6.46841112,229.01,228.96,26.71825452]
[1734035799223,6.46841112,229.01,228.96,2.4]
[1734035799726,2.183,229.0,228.97,5.28089518]
[1734035799925,6.46841112,229.01,228.96,2.4]
[1734035800115,6.46841112,229.01,228.97,5.28089146]
[1734035800320,6.46841112,229.01,228.96,2.4]
[1734035800622,6.46841112,229.01,228.97,5.2810335]
[1734035800815,6.46841112,229.01,228.96,2.4]
[1734035801017,6.46841112,228.99,228.94,145.90952715]
[1734035801215,6.46841112,228.99,228.94,2.4]
[1734035801216,0.67436234,228.98,228.94,2.4]
[1734035801415,6.46841112,228.99,228.95,5.28266604]
[1734035801616,6.46841112,228.99,228.94,2.4]
[1734035801617,0.67438467,228.98,228.94,2.4]
[1734035801816,0.67438467,228.98,228.95,5.28264477]
[1734035802017,2.1835,228.96,228.94,2.4]
[1734035802226,2.1835,228.96,228.95,5.28019755]
[1734035808029,6.46841112,229.0,228.94,75.35476357]
[1734035808030,6.46841112,229.0,228.94,148.30952715]
[1734035808229,2.1835,228.95,228.94,148.30952715]
[1734035808429,2.1835,228.95,228.94,244.38656973]
[1734035809329,6.46841112,229.02,228.94,171.43180616]
[1734035809531,2.4,229.06,228.97,6.46841112]
[1734035809732,6.46841112,229.04,228.98,5.27902943]
[1734035810027,6.46841112,229.04,228.99,5.27902943]
[1734035810230,2.1832,228.98,228.97,6.46841112]
[1734035810426,2.1832,228.98,228.97,11.74414829]
[1734035811123,2.1832,228.98,228.97,11.74429223]
[1734035811326,2.1832,228.98,228.97,5.27588111]
[1734035813225,2.1832,228.98,228.97,130.40798393]
[1734035813629,2.1832,228.98,228.97,5.27588111]
[1734035814435,6.46841112,229.02,228.97,5.27139135]
[1734035814735,6.46841112,229.02,228.98,5.27139135]
[1734035814938,2.1833,228.98,228.96,72.76592764]
[1734035815233,2.1833,228.98,228.96,24.25530921]
[1734035815434,2.1833,228.97,228.96,24.25530921]
[1734035815734,6.46841112,229.0,228.94,26.65530921]
[1734035816436,2.1834,228.96,228.94,26.65530921]
[1734035817934,2.1834,228.96,228.95,53.3259967]
[1734035818129,2.1834,228.96,228.95,53.32764435]
[1734035820531,7.66516775,229.09,228.94,26.65530921]
[1734035820532,2.1835,228.95,228.94,26.65530921]
[1734035820737,2.1835,228.95,228.94,2.4]
[1734035820934,6.46841112,228.96,228.92,72.76592764]
[1734035821238,2.1837,228.93,228.92,72.76592764]
[1734035821434,2.1837,228.93,228.92,130.49416374]
[1734035822337,2.1837,228.93,228.92,241.6304499]
[1734035823040,2.1837,228.93,228.92,241.619045]
[1734035823943,2.1837,228.93,228.92,130.49416374]
[1734035826144,2.1837,228.93,228.92,125.2240471]
[1734035826442,2.1837,228.93,228.92,130.48680443]
[1734035826642,2.1837,228.93,228.92,125.2240471]
[1734035826838,2.1837,228.93,228.92,130.48603923]
[1734035828246,2.1837,228.93,228.92,241.55199149]
[1734035828542,2.1837,228.93,228.92,130.48603923]
[1734035828744,2.1837,228.93,228.92,241.5518531]
[1734035829045,1.3994,229.04,228.92,130.48603923]
[1734035829245,6.46841112,229.01,228.94,30.72372033]
[1734035829446,6.46841112,229.01,228.95,5.26199213]
[1734035829647,2.1834,228.97,228.96,5.2592723]
[1734035829947,6.46841112,229.03,228.96,11.72768342]
[1734035830148,0.67431726,229.02,228.97,2.4]
[1734035830345,6.46841112,229.03,228.97,2.4]
[1734035830744,2.1832,228.99,228.97,2.4]
[1734035830945,6.46841112,229.03,228.97,2.4]
[1734035831542,2.1832,228.98,228.97,2.4]
[1734035832644,2.1831,228.99,228.97,243.75542679]
[1734035832849,2.1831,228.99,228.98,5.26355386]
[1734035833144,2.1827,229.04,228.98,11.73196498]
[1734035833342,2.1827,229.04,228.99,5.26355386]
[1734035833546,2.1827,229.04,229.0,6.46841112]
[1734035833950,2.1827,229.04,229.01,5.26221224]
[1734035834144,2.1826,229.06,229.0,6.46841112]
[1734035834344,9.26201112,229.1,229.04,6.46841112]
[1734035834550,0.6741542,229.09,229.04,6.46841112]
[1734035834749,0.6741542,229.09,229.08,6.46841112]
[1734035835046,6.46841112,229.15,229.08,6.46841112]
[1734035835252,2.8558542,229.14,229.1,6.46841112]
[1734035835546,0.6741542,229.13,229.1,6.46841112]
[1734035835757,0.6741542,229.12,229.1,6.46841112]
[1734035836050,6.46841112,229.18,229.1,6.46841112]
[1734035836246,0.67398012,229.17,229.1,6.46841112]
[1734035836452,6.46841112,229.16,229.1,6.46841112]
[1734035836654,0.67398012,229.15,229.1,6.46841112]
[1734035836853,0.67398012,229.15,229.11,2.4]
[1734035837451,0.67398012,229.14,229.12,6.46841112]
[1734035837650,6.46841112,229.21,229.13,6.46841112]
[1734035837851,2.1814,229.18,229.15,6.46841112]
[1734035838051,0.67394182,229.17,229.16,2.4]
[1734035838553,0.67394182,229.2,229.16,2.4]
[1734035838754,0.67394182,229.19,229.16,2.4]
[1734035838955,0.67394182,229.18,229.16,2.4]
[1734035839157,0.67394182,229.17,229.16,2.4]
[1734035839357,2.85534182,229.17,229.16,2.4]
[1734035841255,2.1814,229.17,229.16,2.4]
[1734035841458,2.85529739,229.17,229.16,2.4]
[1734035844658,2.1814,229.17,229.16,2.4]
[1734035845259,6.46841112,229.29,229.18,2.1813]
[1734035845460,6.46841112,229.21,229.1,5.31312563]
[1734035845663,0.67373086,229.28,229.14,2.38]
[1734035845958,0.67373086,229.2,229.15,6.46841112]
[1734035846266,6.46841112,229.25,229.19,6.46841112]
[1734035846466,6.46841112,229.25,229.2,2.38]
[1734035846658,1.4455,229.26,229.2,2.38]
[1734035847464,7.89851112,229.27,229.2,2.38]
[1734035847866,6.46841112,229.27,229.2,2.38]
[1734035848957,1.416,229.31,229.2,2.38]
[1734035849159,6.46841112,229.28,229.21,6.46841112]
[1734035849360,1.416,229.31,229.23,6.46841112]
[1734035849565,2.1804,229.28,229.23,6.46841112]
[1734035849765,6.46841112,229.3,229.23,6.46841112]
[1734035852163,6.46841112,229.3,229.24,5.38560792]
[1734035852363,1.416,229.31,229.25,7.76560792]
[1734035852364,7.88441112,229.31,229.25,7.76560792]
[1734035852565,7.88441112,229.31,229.25,8.84841112]
[1734035852868,1.416,229.31,229.25,8.84841112]
[1734035853064,2.1802,229.3,229.25,8.84841112]
[1734035853267,1.4455,229.34,229.27,6.46841112]
[1734035853474,1.4455,229.34,229.29,6.46841112]
[1734035853673,1.4455,229.34,229.3,2.38]
[1734035854069,2.7119,229.39,229.33,6.46841112]
[1734035854373,9.18031112,229.39,229.31,6.46841112]
[1734035854580,2.1798,229.34,229.32,5.37401995]
[1734035854876,2.7119,229.39,229.31,6.46841112]
[1734035855170,2.1797,229.35,229.33,6.46841112]
[1734035858481,2.7119,229.39,229.33,6.46841112]
[1734035858674,2.7119,229.39,229.35,6.46841112]
[1734035858876,2.7119,229.39,229.35,8.84841112]
[1734035859180,1.3381,229.39,229.35,8.84841112]
[1734035859374,1.3381,229.39,229.37,6.46841112]
[1734035859576,1.4004,229.42,229.37,6.46841112]
[1734035860576,1.4362,229.46,229.41,6.46841112]
[1734035862072,2.179,229.42,229.41,6.46841112]
[1734035862277,1.4362,229.46,229.41,6.46841112]
[1734035862479,2.1788,229.44,229.43,6.46841112]
[1734035865584,1.3517,229.49,229.4,2.38]
[1734035865787,1.3517,229.49,229.43,6.46841112]
[1734035865985,2.1787,229.46,229.45,6.46841112]
[1734035866182,2.8099,229.54,229.45,6.46841112]
[1734035866388,2.8099,229.54,229.48,6.46841112]
[1734035866684,2.8099,229.54,229.46,2.38]
[1734035866685,6.46841112,229.68,229.53,6.46841112]
[1734035866882,2.816,229.67,229.61,6.46841112]
[1734035867083,2.1771,229.62,229.61,6.46841112]
[1734035867285,2.816,229.67,229.61,6.46841112]
[1734035867483,2.816,229.67,229.63,6.46841112]
[1734035867686,2.816,229.67,229.61,6.46841112]
[1734035868087,2.816,229.67,229.63,6.46841112]
[1734035868392,1.4487,229.67,229.6,2.38]
[1734035868585,1.4487,229.67,229.65,6.46841112]
[1734035868781,2.1768,229.66,229.65,6.46841112]
[1734035868984,2.1768,229.66,229.65,8.84841112]
[1734035869183,2.1768,229.66,229.65,2.38]
[1734035869584,2.1763,229.72,229.65,2.38]
[1734035869793,6.61857786,229.74,229.65,2.38]
[1734035870185,2.1767,229.67,229.65,2.38]
[1734035872684,2.1768,229.66,229.65,2.38]
[1734035873190,2.1766,229.68,229.65,2.38]
[1734035873490,2.1766,229.68,229.65,12.39424318]
[1734035874195,1.3609,229.74,229.65,12.39424318]
[1734035874386,1.3609,229.74,229.7,10.01424318]
[1734035874593,10.01424318,229.85,229.71,2.38]
[1734035874796,10.01424318,229.85,229.73,10.01424318]
[1734035875088,5.17796178,229.85,229.73,10.01424318]
[1734035875291,4.1444,229.89,229.76,10.01424318]
[1734035875594,4.1444,229.89,229.79,10.01424318]
[1734035875891,5.28877622,229.88,229.79,10.01424318]
[1734035876093,2.1749,229.87,229.79,10.01424318]
[1734035876290,2.7073,229.89,229.82,10.01424318]
[1734035876491,2.7073,229.89,229.83,2.38]
[1734035876690,1.3373,229.89,229.83,2.38]
[1734035876892,1.3373,229.89,229.83,12.39424318]
[1734035877190,2.1753,229.82,229.8,18.19148191]
[1734035877394,10.01424318,229.88,229.78,2.38]
[1734035877694,1.3373,229.89,229.78,2.38]
[1734035877695,2.1755,229.8,229.78,2.38]
[1734035877891,1.3373,229.89,229.78,2.38]
[1734035878890,2.175,229.85,229.8,10.01424318]
[1734035879090,1.3373,229.89,229.8,10.01424318]
[1734035879590,1.3373,229.89,229.81,2.38]
[1734035879786,1.3373,229.89,229.78,6.0638273]
[1734035879996,2.1754,229.8,229.79,2.38]
[1734035880996,2.1757,229.77,229.76,2.38]
[1734035881299,1.3405,229.85,229.76,2.38]
[1734035881593,2.1757,229.77,229.75,6.0638273]
[1734035881796,1.3405,229.85,229.76,12.39424318]
[1734035881998,1.3405,229.85,229.79,10.01424318]
[1734035883098,1.3405,229.85,229.76,2.38]
[1734035883394,1.3405,229.85,229.78,10.01424318]
[1734035883592,2.1758,229.76,229.75,10.01424318]
[1734035883899,1.3405,229.85,229.75,2.38]
[1734035884497,11.35474318,229.85,229.72,10.01424318]
[1734035884697,2.1756,229.79,229.71,2.38]
[1734035884897,1.4158,229.78,229.71,2.38]
[1734035885199,1.4158,229.78,229.68,137.23946689]
[1734035885200,1.4158,229.78,229.68,132.05451]
[1734035885899,2.1765,229.69,229.68,132.05451]
[1734035886505,1.4158,229.78,229.68,132.05451]
[1734035886695,2.1763,229.71,229.68,132.05451]
[1734035887795,1.4158,229.78,229.68,132.05451]
[1734035887997,5.19939287,229.77,229.68,132.05451]
[1734035888402,1.4314,229.76,229.69,10.01424318]
[1734035888595,1.4158,229.78,229.72,10.01424318]
[1734035888797,2.1755,229.8,229.75,10.01424318]
[1734035888994,1.3635,229.83,229.75,12.39424318]
[1734035889201,1.3635,229.83,229.75,2.38]
[1734035891501,2.1757,229.77,229.75,2.38]
[1734035892101,2.1756,229.79,229.75,2.38]
[1734035892402,6.31753124,229.84,229.75,2.38]
[1734035892599,1.0,229.84,229.75,2.38]
[1734035892999,2.1754,229.81,229.76,9.75974616]
[1734035893200,1.4483,229.87,229.77,5.27313171]
[1734035893499,2.1753,229.82,229.78,9.76312865]
[1734035893701,2.1753,229.82,229.79,5.27313171]
[1734035894006,2.1753,229.82,229.78,5.8582823]
[1734035894300,1.4483,229.87,229.79,5.27868928]
[1734035894506,1.4483,229.87,229.76,23.43312921]
[1734035894709,2.1756,229.78,229.75,23.43312921]
[1734035894911,10.01424318,229.85,229.75,2.38]
[1734035895205,2.1758,229.76,229.75,2.38]
[1734035895402,1.4483,229.87,229.72,46.86625845]
[1734035895403,2.38,229.81,229.72,70.29938766]
[1734035895604,10.01424318,229.79,229.73,5.28116687]
[1734035895805,2.1762,229.72,229.71,70.29938766]
[1734035896105,2.7485,229.8,229.71,63.22660512]
[1734035896300,2.7485,229.8,229.72,5.28110066]
[1734035896504,2.176,229.74,229.73,5.28110066]
[1734035897505,2.176,229.74,229.73,13.7471329]
[1734035897710,2.1759,229.75,229.73,13.7471329]
[1734035898007,2.7485,229.8,229.74,5.28110066]
[1734035898209,2.7485,229.8,229.68,150.45195551]
[1734035898210,2.1758,229.76,229.75,5.28110066]
[1734035899006,2.38,229.86,229.75,13.75630095]
[1734035899210,2.38,229.86,229.73,2.38]
[1734035899211,2.1757,229.77,229.76,13.75630095]
[1734035901708,1.3445,229.86,229.73,72.99449448]
[1734035901709,1.3445,229.86,229.73,25.91816482]
[1734035901912,1.3445,229.86,229.74,13.81068809]
[1734035902108,1.3445,229.86,229.75,13.81068809]
[1734035902304,1.3445,229.86,229.76,13.81068809]
[1734035902508,1.3445,229.86,229.77,13.81068809]
[1734035902714,1.3445,229.86,229.78,5.31180311]
[1734035903013,1.3445,229.86,229.79,5.31917369]
[1734035903213,1.0,229.85,229.8,5.31917369]
[1734035903408,1.0,229.85,229.81,5.31917369]
[1734035903609,16.01744551,229.84,229.72,70.61449448]
[1734035903806,2.176,229.74,229.73,8.52452593]
[1734035904607,16.01744551,229.8,229.7,2.42]
[1734035904914,16.01744551,229.8,229.68,202.66900448]
[1734035905413,2.1765,229.69,229.68,202.66900448]
[1734035905716,2.1765,229.69,229.68,132.05451]
[1734035906616,2.1765,229.69,229.68,250.84400316]
[1734035906812,2.1765,229.69,229.68,132.05451]
[1734035910215,2.1765,229.69,229.68,120.49418369]
[1734035910415,2.1765,229.69,229.68,115.17448369]
[1734035910613,2.1765,229.69,229.68,112.54038369]
[1734035912122,2.1765,229.69,229.68,6.77568646]
[1734035912921,4.5965,229.69,229.68,6.77568646]
[1734035913823,2.1765,229.69,229.68,6.77568646]
[1734035915733,2.1765,229.69,229.68,12.0485399]
[1734035917023,16.01744551,229.7,229.55,1.4323]
[1734035917325,6.7727,229.71,229.55,1.4323]
[1734035917326,16.01744551,229.66,229.55,1.4323]
[1734035917526,2.42,229.65,229.5,5.8845412]
[1734035917729,16.01744551,229.62,229.49,8.3045412]
[1734035917928,16.01744551,229.62,229.49,2.42]
[1734035917929,2.42,229.61,229.49,2.42]
[1734035918129,2.42,229.61,229.48,8.3045412]
[1734035918331,2.42,229.61,229.48,2.42]
[1734035918829,2.1776,229.58,229.48,2.42]
[1734035919130,2.42,229.61,229.48,2.42]
[1734035919330,2.1782,229.51,229.48,2.42]
[1734035919529,2.42,229.61,229.47,5.1192]
[1734035920423,16.01744551,229.58,229.47,5.1192]
[1734035920825,2.1785,229.48,229.47,2.6992]
[1734035921525,2.42,229.56,229.43,2.42]
[1734035922431,16.01744551,229.54,229.37,1.3786]
[1734035922630,16.01744551,229.54,229.38,1.357]
[1734035923135,1.0,229.55,229.38,6.50300548]
[1734035923328,2.44,229.54,229.38,6.50300548]
[1734035923733,2.1786,229.48,229.4,2.1792]
[1734035923929,2.44,229.54,229.41,2.44]
[1734035924433,2.1789,229.44,229.41,2.44]
[1734035925023,2.44,229.54,229.41,2.44]
[1734035925232,2.1788,229.45,229.41,2.44]
[1734035925931,2.1789,229.44,229.41,2.44]
[1734035926329,2.44,229.54,229.41,2.44]
[1734035926528,2.179,229.43,229.41,2.44]
[1734035928638,2.179,229.42,229.41,2.44]
[1734035930329,2.1793,229.4,229.38,8.94300548]
[1734035930524,2.1793,229.4,229.39,5.17849895]
[1734035931833,2.1791,229.41,229.39,5.17849895]
[1734035932036,2.1791,229.41,229.38,3.797]
[1734035932739,2.1791,229.41,229.39,5.17467623]
[1734035932936,2.1791,229.41,229.4,10.03375926]
[1734035933140,2.179,229.43,229.4,10.03375926]
[1734035933437,2.38,229.54,229.41,5.172729]
[1734035933635,2.1788,229.45,229.43,10.03375926]
[1734035933838,2.1788,229.45,229.43,12.41375926]
[1734035934737,2.1788,229.44,229.43,2.38]
[1734035935335,12.41375926,229.54,229.4,10.03375926]
[1734035935536,2.179,229.43,229.4,10.03375926]
[1734035936234,1.0,229.53,229.4,10.03375926]
[1734035936438,2.179,229.42,229.4,10.03375926]
[1734035936935,1.0,229.53,229.4,10.03375926]
[1734035937636,2.1787,229.46,229.4,10.03375926]
[1734035937836,1.0,229.53,229.4,10.03375926]
[1734035938347,2.1788,229.45,229.4,12.21295926]
[1734035939941,2.1789,229.44,229.4,12.21295926]
[1734035940440,1.0,229.53,229.4,12.21295926]
[1734035940740,2.1789,229.43,229.4,12.21295926]
[1734035941644,2.1789,229.43,229.4,2.1792]
[1734035941839,2.1792,229.4,229.39,2.38]
[1734035942238,10.03375926,229.45,229.38,1.357]
[1734035942438,2.1796,229.36,229.35,1.4045]
[1734035942746,10.03375926,229.42,229.3,2.38]
[1734035942943,10.03375926,229.42,229.31,5.17889112]
[1734035943143,10.03375926,229.42,229.3,3.7888]
[1734035943641,2.38,229.43,229.31,10.03375926]
[1734035944042,2.1793,229.4,229.33,2.1799]
[1734035944349,10.03375926,229.42,229.3,3.7888]
[1734035944747,10.03375926,229.42,229.3,5.9689]
[1734035945041,10.03375926,229.42,229.3,3.7888]
[1734035946838,10.03375926,229.39,229.28,0.24048]
[1734035947039,2.18,229.32,229.28,0.24048]
[1734035947244,2.18,229.32,229.29,5.18283174]
[1734035947439,2.18,229.32,229.28,0.24048]
[1734035948148,2.18,229.32,229.29,5.18295218]
[1734035948438,2.18,229.32,229.28,0.24048]
[1734035948746,2.1801,229.31,229.28,0.24048]
[1734035949042,2.38,229.38,229.28,0.24048]
[1734035950436,2.1802,229.3,229.28,0.24048]
[1734035950642,2.38,229.38,229.28,0.24048]
[1734035951342,2.1802,229.3,229.28,0.24048]
[1734035951940,2.38,229.38,229.28,0.24048]
[1734035952338,10.03375926,229.35,229.28,0.24048]
[1734035952841,10.03375926,229.35,229.25,2.38]
[1734035953045,10.03375926,229.35,229.26,5.18308043]
[1734035953344,10.03375926,229.38,229.27,5.18506371]
[1734035953642,2.38,229.4,229.28,5.18506371]
[1734035953946,2.38,229.4,229.29,5.18506371]
[1734035954143,2.38,229.4,229.3,5.18506371]
[1734035954341,2.38,229.4,229.28,2.1803]
[1734035954743,2.38,229.4,229.29,5.1856663]
[1734035954948,2.38,229.4,229.3,5.1856663]
[1734035954949,2.1799,229.33,229.3,5.1856663]
[1734035955138,10.03375926,229.38,229.31,5.1856663]
[1734035955343,10.03375926,229.38,229.25,8.2645412]
[1734035955545,2.1801,229.31,229.26,9.48209618]
[1734035955741,2.1801,229.31,229.27,5.18740093]
[1734035955947,10.03375926,229.38,229.28,5.18740093]
[1734035956147,10.03375926,229.38,229.29,5.18740093]
[1734035956340,10.03375926,229.38,229.3,5.18740093]
[1734035956545,10.03375926,229.38,229.31,5.18740093]
[1734035956745,10.03375926,229.38,229.27,2.1804]
[1734035957047,10.03375926,229.38,229.28,5.1892444]
[1734035957246,2.1799,229.33,229.29,5.1892444]
[1734035957549,1.0,229.41,229.3,17.60300366]
[1734035957854,1.0,229.41,229.31,6.57687555]
[1734035958153,1.0,229.41,229.32,5.18917555]
[1734035958453,1.0,229.41,229.33,5.18917555]
[1734035958648,1.0,229.41,229.34,5.18917555]
[1734035958848,1.0,229.41,229.31,1.3877]
[1734035959047,1.0,229.41,229.32,5.19138365]
[1734035959250,1.0,229.41,229.33,5.19138365]
[1734035959443,2.1793,229.39,229.34,5.19138365]
[1734035959645,1.0,229.41,229.34,5.19138365]
[1734035959844,1.0,229.41,229.35,5.19138365]
[1734035960048,1.0,229.41,229.31,2.7413]
[1734035960348,1.0,229.41,229.32,7.37844937]
[1734035960349,2.1794,229.38,229.32,7.37844937]
[1734035960547,2.1794,229.38,229.32,2.18]
[1734035960847,2.1794,229.38,229.33,5.19876626]
[1734035961155,2.1795,229.37,229.34,5.19893337]
[1734035961352,1.0,229.41,229.31,2.7413]
[1734035961650,10.03375926,229.39,229.32,5.20371941]
[1734035961948,10.03375926,229.39,229.33,5.20371941]
[1734035962149,2.1799,229.34,229.31,1.3877]
[1734035962446,10.03375926,229.39,229.32,5.20848436]
[1734035962753,10.03375926,229.39,229.33,5.20848436]
[1734035962953,10.03375926,229.39,229.31,1.3877]
[1734035963143,10.03375926,229.39,229.32,5.20894007]
[1734035963344,10.03375926,229.39,229.31,1.3877]
[1734035963550,10.03375926,229.39,229.32,5.21143182]
[1734035963754,10.03375926,229.39,229.31,1.3877]
[1734035963950,10.03375926,229.36,229.29,2.38]
[1734035964450,2.1798,229.34,229.29,2.38]
[1734035964656,10.03375926,229.36,229.29,2.38]
[1734035965447,2.1802,229.3,229.29,2.38]
[1734035965744,10.03375926,229.36,229.25,1.4291]
[1734035966148,10.03375926,229.36,229.26,10.17869378]
[1734035966351,10.03375926,229.39,229.27,4.29415258]
[1734035966549,2.1799,229.34,229.28,2.1804]
[1734035966958,10.03375926,229.39,229.27,5.8845412]
[1734035967154,2.18,229.33,229.27,2.1805]
[1734035967353,10.03375926,229.39,229.26,23.53816482]
[1734035967551,1.0,229.41,229.31,2.1801]
[1734035967951,1.0,229.41,229.3,18.29830046]
[1734035968251,1.0,229.41,229.3,12.41375926]
[1734035968457,2.1795,229.37,229.31,2.18]
[1734035968851,1.0,229.41,229.31,2.18]
[1734035969053,2.1796,229.36,229.31,2.18]
[1734035970956,2.1797,229.35,229.31,2.18]
[1734035971555,1.0,229.41,229.3,2.38]
[1734035971758,10.03375926,229.39,229.3,2.38]
[1734035972149,2.1796,229.37,229.3,2.38]
[1734035972353,10.03375926,229.39,229.3,2.38]
[1734035972753,2.18,229.33,229.3,2.38]
[1734035973459,2.18,229.33,229.3,8.2645412]
[1734035973959,1.0,229.41,229.3,8.2645412]
[1734035973960,1.0,229.41,229.31,4.30398294]
[1734035974254,1.0,229.41,229.32,4.30612983]
[1734035974558,10.03375926,229.47,229.33,14.33935236]
[1734035974756,0.67282775,229.46,229.33,12.87605926]
[1734035974954,2.1796,229.37,229.34,4.30509786]
[1734035975159,10.03375926,229.41,229.33,5.2223]
[1734035975361,10.03375926,229.38,229.29,2.38]
[1734035975560,2.1801,229.32,229.29,2.38]
[1734035976355,10.03375926,229.38,229.29,2.38]
[1734035977860,2.18,229.32,229.29,2.38]
[1734035978060,10.03375926,229.38,229.29,4.5602]
[1734035978458,2.1798,229.34,229.29,4.5602]
[1734035979867,2.1799,229.33,229.29,10.4447412]
[1734035980062,2.1799,229.33,229.29,4.5602]
[1734035980971,10.03375926,229.34,229.26,2.8423]
[1734035981264,10.03375926,229.34,229.26,8.85324994]
[1734035981458,2.38,229.36,229.26,8.85324994]
[1734035981662,10.03375926,229.37,229.26,2.8423]
[1734035982162,2.1805,229.28,229.26,2.8423]
[1734035984164,10.03375926,229.37,229.26,2.8423]
[1734035984364,0.67331971,229.36,229.26,2.8423]
[1734035984565,2.1802,229.3,229.26,5.0228]
[1734035984865,10.03375926,229.37,229.26,2.8423]
[1734035985066,0.67318619,229.36,229.26,2.8423]
[1734035985263,10.03375926,229.37,229.26,2.8423]
[1734035985567,0.67314292,229.36,229.26,2.8423]
[1734035986269,10.03375926,229.37,229.26,2.8423]
[1734035986475,0.67316236,229.36,229.26,2.8423]
[1734035986666,10.03375926,229.37,229.26,2.8423]
[1734035986872,0.673247,229.36,229.26,2.8423]
[1734035987471,2.1803,229.3,229.26,2.8423]